fUSD/lending_fUSD_20260208
["ID","MTS","AMOUNT","RATE_DAILY","PERIOD"]
[404755594,1770511842119,-13082.53,0.00022,2]
[404755596,1770511842128,-360.45678983,0.00022423,2]
[404755598,1770511842137,-500.0,0.0002246,2]
[404755600,1770511842151,-269.11351765,0.0002246,2]
[404755602,1770511842161,-340.35210988,0.0002246,2]
[404755604,1770511842169,-243.25,0.00022921,2]
[404755606,1770511842179,-160.0,0.00023,2]
[404755608,1770511842187,-1000.0,0.00023008,2]
[404755610,1770511842196,-501.58240503,0.00023556,2]
[404755612,1770511842205,-3135.85604413,0.00023783,2]
[404755614,1770511842214,-1476.90100505,0.00023822,2]
[404755616,1770511842223,-235.96390318,0.0002399,2]
[404755618,1770511842233,-1000.0,0.00024658,2]
[404755620,1770511842242,-2469.53,0.00026233,2]
[404755622,1770511842251,-360.45678983,0.00026751,2]
[404755624,1770511842260,-3135.85604413,0.00027108,2]
[404755626,1770511842271,-3687.57,0.00027123,2]
[404755628,1770511842281,-1476.90100505,0.00027141,2]
[404755630,1770511842290,-150.0,0.00027369,2]
[404755632,1770511842299,-1446.91,0.00027397,2]
[404755634,1770511842308,-300.0,0.00027397,2]
[404755636,1770511842316,-199.76626799,0.00028936,2]
[404755638,1770511842326,-13082.53,0.00029,2]
[404755640,1770511842335,-235.96390318,0.00029003,2]
[404755642,1770511842344,-1541.911,0.00029211,2]
[404755644,1770511842354,-3483.0,0.00029211,2]
[404755646,1770511842363,-616.0,0.00029211,2]
[404755648,1770511842373,-1335.0,0.00029211,2]
[404755650,1770511842382,-1206.0,0.00029211,2]
[404755652,1770511842391,-1272.0,0.00029211,2]
[404755654,1770511842401,-917.0,0.00029211,2]
[404755656,1770511842411,-250.0,0.00029211,2]
[404755658,1770511842421,-6584.0,0.00029211,2]
[404755660,1770511842430,-150.0,0.00029211,2]
[404755662,1770511842439,-150.0,0.00029211,2]
[404755664,1770511842448,-150.0,0.00029211,2]
[404755666,1770511842458,-3255.0,0.00029211,2]
[404755668,1770511842467,-150.0,0.00029211,2]
[404755670,1770511842477,-412.0,0.00029211,2]
[404755672,1770511842486,-3135.85604413,0.00030434,2]
[404755674,1770511842495,-1476.90100505,0.0003046,2]
[404755676,1770511842504,-360.45678983,0.00031079,2]
[404755678,1770511842514,-166.66,0.00031824,2]
[404755680,1770511842523,-19365.65,0.0003183,2]
[404755682,1770511842532,-182.21317059,0.00031952,8]
[404755684,1770511842542,-384.31,0.00032,7]
[404755686,1770511842552,-1411.0,0.00032211,2]
[404755688,1770511842562,-3483.0,0.00032211,2]
[404755690,1770511842571,-616.0,0.00032211,2]
[404755692,1770511842580,-1335.0,0.00032211,2]
[404755694,1770511842589,-1206.0,0.00032211,2]
[404755696,1770511842598,-1272.0,0.00032211,2]
[404755698,1770511842607,-917.0,0.00032211,2]
[404755700,1770511842616,-150.0,0.00032211,2]
[404755702,1770511842625,-150.0,0.00032211,2]
[404755704,1770511842634,-150.0,0.00032211,2]
[404755706,1770511842643,-6584.0,0.00032211,2]
[404755708,1770511842652,-3255.0,0.00032211,2]
[404755710,1770511842661,-150.0,0.00032211,2]
[404755712,1770511842670,-412.0,0.00032211,2]
[404755714,1770511842679,-507.0,0.00032616,2]
[404755716,1770511842688,-166.66,0.00032875,2]
[404755718,1770511842697,-394.5,0.00033,2]
[404755720,1770511842707,-500.0,0.00033022,2]
[404755722,1770511842716,-2000.0,0.000336,7]
[404755724,1770511842726,-13082.53,0.000336,2]
[404755726,1770511842736,-2000.0,0.000336,7]
[404755728,1770511842750,-3135.85604413,0.00033759,2]
[404755731,1770511842760,-1476.90100505,0.00033779,2]
[404755733,1770511842770,-166.66,0.00033925,2]
[404755734,1770511842779,-10679.0,0.00033946,5]
[404755737,1770511842789,-235.96390318,0.00034015,2]
[404755739,1770511842798,-153.94240824,0.00034132,2]
[404755741,1770511842808,-507.0,0.00034309,4]
[404755743,1770511842817,-1114.5913359,0.00034888,20]
[404755745,1770511842826,-1042.70752473,0.00034888,20]
[404755747,1770511842835,-1079.47087805,0.00034888,20]
[404755749,1770511842844,-1138.14404169,0.00034888,20]
[404755751,1770511842853,-1108.92762409,0.00034888,20]
[404755753,1770511842862,-1145.44174521,0.00034888,20]
[404755755,1770511842872,-1085.13349497,0.00034888,20]
[404755757,1770511842883,-1116.18344661,0.00034888,20]
[404755759,1770511842892,-1934.1892554,0.00034888,20]
[404755761,1770511842901,-150.0,0.00034904,2]
[404755763,1770511842911,-123021.4432068,0.0003495,2]
[404755765,1770511842920,-166.66,0.00034976,2]
[404755767,1770511842929,-2000.0,0.000352,7]
[404755769,1770511842938,-1411.0,0.00035211,2]
[404755771,1770511842948,-3483.0,0.00035211,2]
[404755773,1770511842960,-616.0,0.00035211,2]
[404755775,1770511842969,-1335.0,0.00035211,2]
[404755777,1770511842978,-1206.0,0.00035211,2]
[404755779,1770511842987,-1272.0,0.00035211,2]
[404755781,1770511842997,-917.0,0.00035211,2]
[404755783,1770511843006,-6584.0,0.00035211,2]
[404755785,1770511843016,-3255.0,0.00035211,2]
[404755787,1770511843025,-412.0,0.00035211,2]
[404755789,1770511843034,-384.31,0.000353,14]
[404755791,1770511843043,-1028.099902,0.000353,28]
[404755793,1770511843052,-1028.099902,0.000353,28]
[404755795,1770511843061,-1028.099902,0.000353,28]
[404755797,1770511843070,-1028.099902,0.000353,28]
[404755799,1770511843079,-360.45678983,0.00035407,2]
[404755800,1770511843087,-153.94240824,0.00035571,2]
[404755803,1770511843097,-200.0,0.000356,2]
[404755804,1770511843106,-1500.0,0.00035616,15]
[404755806,1770511843115,-1500.0,0.00035616,15]
[404755808,1770511843124,-2601.552515,0.00035616,15]
[404755810,1770511843134,-200.0,0.00035616,2]
[404755812,1770511843143,-318.07062284,0.00035616,7]
[404755814,1770511843154,-2000.0,0.000359,2]
[404755816,1770511843163,-200.0,0.00035956,2]
[404755819,1770511843173,-200.0,0.00035972,2]
[404755821,1770511843184,-13082.53,0.00036,2]
[404755822,1770511843194,-507.0,0.00036001,6]
[404755824,1770511843203,-166.66,0.00036027,2]
[404755826,1770511843212,-200.0,0.00036316,2]
[404755828,1770511843222,-200.0,0.00036332,2]
[404755830,1770511843231,-199.76626799,0.000365,9]
[404755832,1770511843241,-150.0,0.00036649,2]
[404755835,1770511843250,-200.0,0.00036679,2]
[404755836,1770511843260,-200.0,0.00036695,2]
[404755839,1770511843269,-153.94240824,0.00037009,2]
[404755840,1770511843279,-200.0,0.00037046,2]
[404755843,1770511843288,-200.0,0.00037062,2]
[404755845,1770511843299,-545.71,0.00037067,120]
[404755847,1770511843309,-151.0,0.00037077,31]
[404755848,1770511843319,-699.223126,0.00037077,31]
[404755850,1770511843328,-699.223126,0.00037077,31]
[404755852,1770511843339,-699.223126,0.00037077,31]
[404755855,1770511843350,-699.223126,0.00037077,31]
[404755857,1770511843362,-151.0,0.00037077,14]
[404755859,1770511843373,-166.66,0.00037077,2]
[404755861,1770511843383,-3135.85604413,0.00037084,2]
[404755863,1770511843393,-1476.90100505,0.00037097,2]
[404755865,1770511843403,-500.0,0.00037377,30]
[404755867,1770511843413,-507.0,0.00037693,8]
[404755869,1770511843423,-151.0,0.00037794,31]
[404755871,1770511843432,-151.0,0.00037794,31]
[404755872,1770511843441,-394.5,0.000378,2]
[404755874,1770511843450,-462.155,0.00037975,50]
[404755876,1770511843462,-151.0,0.00038,31]
[404755895,1770511843611,-151.0,0.00038,31]
[404755897,1770511843629,-151.0,0.00038,31]
[404755899,1770511843638,-157.237346,0.00038,31]
[404755901,1770511843647,-157.237346,0.00038,31]
[404755903,1770511843656,-157.237346,0.00038,31]
[404755905,1770511843667,-157.237346,0.00038,31]
[404755907,1770511843676,-2469.53,0.00038014,2]
[404755909,1770511843686,-384.31,0.000381,14]
[404755911,1770511843696,-152.0,0.0003817,3]
[404755913,1770511843705,-1411.0,0.00038211,2]
[404755915,1770511843714,-3483.0,0.00038211,2]
[404755916,1770511843723,-616.0,0.00038211,2]
[404755917,1770511843731,-1335.0,0.00038211,2]
[404755918,1770511843740,-1206.0,0.00038211,2]
[404755919,1770511843749,-1272.0,0.00038211,2]
[404755920,1770511843758,-917.0,0.00038211,2]
[404755921,1770511843767,-5151.362,0.00038211,2]
[404755922,1770511843776,-3255.0,0.00038211,2]
[404755923,1770511843785,-412.0,0.00038211,2]
[404755924,1770511843794,-151.0,0.00038211,31]
[404755925,1770511843803,-276.59215114,0.00038356,120]
[404755926,1770511843812,-13082.53,0.000384,2]
[404755927,1770511843821,-153.94240824,0.00038448,2]
[404755929,1770511843831,-150.0,0.00038482,2]
[404755931,1770511843840,-235.96390318,0.00039027,2]
[404755933,1770511843850,-151.0,0.00039041,120]
[404755935,1770511843859,-259.39905185,0.00039068,5]
[404755937,1770511843871,-507.0,0.00039386,10]
[404755939,1770511843880,-2000.0,0.000396,2]
[404755943,1770511843889,-3835.0,0.000396,7]
[404755946,1770511843898,-151.0,0.00039722,120]
[404755949,1770511843909,-151.0,0.00039726,120]
[404755952,1770511843918,-151.0,0.00039726,120]
[404755954,1770511843927,-153.851897,0.00039726,120]
[404755958,1770511843937,-160.60229,0.00039726,120]
[404755961,1770511843946,-151.0,0.00039726,120]
[404755965,1770511843957,-151.0,0.00039726,120]
[404755968,1770511843969,-151.0,0.00039726,120]
[404755971,1770511843978,-224.143673,0.00039726,120]
[404755973,1770511843987,-151.0,0.00039726,120]
[404755977,1770511843998,-151.0,0.00039726,120]
[404755980,1770511844008,-151.0,0.00039726,120]
[404755983,1770511844017,-151.0,0.00039726,120]
[404755986,1770511844029,-151.0,0.00039726,120]
[404755989,1770511844038,-555.397952,0.00039726,120]
[404755992,1770511844047,-151.0,0.00039726,120]
[404755995,1770511844056,-242.458565,0.00039726,120]
[404755998,1770511844066,-555.397952,0.00039726,120]
[404756000,1770511844075,-151.0,0.00039726,120]
[404756002,1770511844084,-555.397952,0.00039726,120]
[404756004,1770511844093,-555.397952,0.00039726,120]
[404756006,1770511844102,-151.0,0.00039726,120]
[404756007,1770511844112,-151.0,0.00039726,120]
[404756009,1770511844123,-151.0,0.00039726,120]
[404756011,1770511844132,-151.0,0.00039726,120]
[404756013,1770511844141,-151.0,0.00039726,120]
[404756015,1770511844150,-151.0,0.00039726,120]
[404756017,1770511844160,-151.0,0.00039726,120]
[404756019,1770511844169,-151.0,0.00039726,120]
[404756021,1770511844179,-151.0,0.00039726,120]
[404756023,1770511844188,-151.0,0.00039726,120]
[404756025,1770511844197,-156.421944,0.00039726,120]
[404756027,1770511844206,-156.421944,0.00039726,120]
[404756029,1770511844215,-156.421944,0.00039726,120]
[404756031,1770511844225,-156.421944,0.00039726,120]
[404756033,1770511844235,-151.0,0.00039726,120]
[404756035,1770511844244,-229.044107,0.00039726,120]
[404756037,1770511844253,-151.0,0.00039726,120]
[404756039,1770511844263,-151.0,0.00039726,120]
[404756040,1770511844272,-153.253402,0.00039726,120]
[404756042,1770511844282,-186.638616,0.00039726,120]
[404756044,1770511844291,-222.015049,0.00039726,120]
[404756046,1770511844300,-151.0,0.00039726,120]
[404756048,1770511844310,-151.0,0.00039726,120]
[404756050,1770511844319,-151.0,0.00039726,120]
[404756052,1770511844328,-151.0,0.00039726,120]
[404756054,1770511844337,-211.072404,0.00039726,120]
[404756056,1770511844347,-211.072404,0.00039726,120]
[404756058,1770511844356,-211.072404,0.00039726,120]
[404756060,1770511844366,-211.072404,0.00039726,120]
[404756062,1770511844377,-151.0,0.00039726,120]
[404756064,1770511844387,-151.0,0.00039726,120]
[404756066,1770511844396,-151.0,0.00039726,120]
[404756068,1770511844405,-151.0,0.00039726,120]
[404756070,1770511844415,-151.0,0.00039726,120]
[404756072,1770511844424,-167.625703,0.00039726,120]
[404756074,1770511844434,-167.625703,0.00039726,120]
[404756076,1770511844443,-151.0,0.00039726,120]
[404756078,1770511844452,-167.625703,0.00039726,120]
[404756080,1770511844462,-151.0,0.00039726,120]
[404756082,1770511844471,-167.625703,0.00039726,120]
[404756084,1770511844480,-151.0,0.00039726,120]
[404756086,1770511844489,-220.285929,0.00039726,120]
[404756088,1770511844498,-151.0,0.00039726,120]
[404756090,1770511844508,-151.0,0.00039726,120]
[404756092,1770511844518,-220.285929,0.00039726,120]
[404756094,1770511844527,-151.0,0.00039726,120]
[404756096,1770511844536,-151.0,0.00039726,120]
[404756098,1770511844545,-220.285929,0.00039726,120]
[404756099,1770511844555,-207.991552,0.00039726,120]
[404756101,1770511844564,-220.285929,0.00039726,120]
[404756103,1770511844573,-273.976466,0.00039726,120]
[404756105,1770511844582,-273.976466,0.00039726,120]
[404756107,1770511844593,-273.976466,0.00039726,120]
[404756109,1770511844603,-151.0,0.00039726,120]
[404756111,1770511844612,-273.976466,0.00039726,120]
[404756113,1770511844623,-151.0,0.00039726,120]
[404756115,1770511844633,-151.0,0.00039726,120]
[404756117,1770511844642,-151.0,0.00039726,120]
[404756119,1770511844652,-320.575481,0.00039726,120]
[404756121,1770511844661,-320.575481,0.00039726,120]
[404756123,1770511844670,-320.575481,0.00039726,120]
[404756125,1770511844679,-320.575481,0.00039726,120]
[404756127,1770511844689,-151.0,0.00039726,120]
[404756129,1770511844698,-151.0,0.00039726,120]
[404756131,1770511844708,-151.0,0.00039726,120]
[404756133,1770511844718,-321.797364,0.00039726,120]
[404756135,1770511844728,-321.797364,0.00039726,120]
[404756137,1770511844737,-321.797364,0.00039726,120]
[404756139,1770511844746,-321.797364,0.00039726,120]
[404756141,1770511844756,-151.0,0.00039726,120]
[404756143,1770511844765,-151.0,0.00039726,120]
[404756145,1770511844775,-151.0,0.00039726,120]
[404756147,1770511844783,-151.0,0.00039726,120]
[404756149,1770511844793,-151.0,0.00039726,120]
[404756151,1770511844802,-151.0,0.00039726,120]
[404756153,1770511844812,-151.0,0.00039726,120]
[404756156,1770511844824,-151.0,0.00039726,14]
[404756157,1770511844834,-151.0,0.00039726,14]
[404756159,1770511844844,-151.0,0.00039726,14]
[404756162,1770511844855,-151.0,0.00039726,14]
[404756164,1770511844864,-151.0,0.00039726,120]
[404756166,1770511844876,-151.0,0.00039726,120]
[404756167,1770511844885,-151.0,0.00039726,120]
[404756169,1770511844894,-151.0,0.00039726,120]
[404756171,1770511844904,-151.0,0.00039726,120]
[404756173,1770511844913,-255.45322,0.00039726,120]
[404756175,1770511844922,-151.0,0.00039726,120]
[404756177,1770511844932,-255.45322,0.00039726,120]
[404756179,1770511844942,-151.0,0.00039726,120]
[404756181,1770511844954,-255.45322,0.00039726,120]
[404756183,1770511844964,-1050.0,0.00039726,120]
[404756185,1770511844973,-255.45322,0.00039726,120]
[404756187,1770511844984,-1050.0,0.00039726,120]
[404756189,1770511844996,-1050.0,0.00039726,120]
[404756191,1770511845006,-151.0,0.00039726,120]
[404756193,1770511845017,-151.0,0.00039726,120]
[404756195,1770511845029,-176.224203,0.00039726,120]
[404756197,1770511845039,-1050.0,0.00039726,120]
[404756199,1770511845049,-151.0,0.00039726,120]
[404756201,1770511845058,-176.224203,0.00039726,120]
[404756203,1770511845068,-388.992593,0.00039726,120]
[404756205,1770511845077,-270.734552,0.00039726,120]
[404756207,1770511845087,-151.0,0.00039726,120]
[404756209,1770511845096,-176.224203,0.00039726,120]
[404756211,1770511845105,-388.992593,0.00039726,120]
[404756213,1770511845114,-151.0,0.00039726,120]
[404756215,1770511845124,-151.0,0.00039726,120]
[404756217,1770511845133,-176.224203,0.00039726,120]
[404756219,1770511845142,-157.778889,0.00039726,120]
[404756221,1770511845152,-205.668642,0.00039726,120]
[404756223,1770511845161,-388.992593,0.00039726,120]
[404756225,1770511845171,-151.0,0.00039726,120]
[404756227,1770511845180,-218.818319,0.00039726,31]
[404756229,1770511845190,-157.778889,0.00039726,120]
[404756231,1770511845199,-205.668642,0.00039726,120]
[404756233,1770511845209,-388.992593,0.00039726,120]
[404756235,1770511845218,-151.0,0.00039726,120]
[404756237,1770511845227,-218.818319,0.00039726,31]
[404756239,1770511845237,-157.778889,0.00039726,120]
[404756241,1770511845246,-205.668642,0.00039726,120]
[404756243,1770511845255,-151.0,0.00039726,120]
[404756245,1770511845265,-218.818319,0.00039726,31]
[404756247,1770511845275,-157.778889,0.00039726,120]
[404756249,1770511845284,-205.668642,0.00039726,120]
[404756251,1770511845293,-218.818319,0.00039726,31]
[404756253,1770511845302,-151.0,0.00039726,120]
[404756255,1770511845311,-151.0,0.00039726,120]
[404756257,1770511845320,-151.0,0.00039726,120]
[404756259,1770511845330,-189.130987,0.00039726,120]
[404756261,1770511845339,-189.130987,0.00039726,120]
[404756263,1770511845348,-189.130987,0.00039726,120]
[404756265,1770511845357,-189.130987,0.00039726,120]
[404756267,1770511845367,-151.0,0.00039726,120]
[404756269,1770511845377,-151.0,0.00039726,120]
[404756271,1770511845387,-151.0,0.00039726,120]
[404756273,1770511845396,-360.45678983,0.00039736,2]
[404756275,1770511845406,-300.0,0.00039747,2]
[404756277,1770511845415,-300.0,0.00039747,2]
[404756278,1770511845424,-300.0,0.00039747,2]
[404756280,1770511845433,-571.85515654,0.00039747,2]
[404756283,1770511845442,-300.0,0.00039747,2]
[404756284,1770511845453,-300.0,0.00039747,2]
[404756286,1770511845462,-300.0,0.00039747,2]
[404756289,1770511845472,-1078.26092173,0.00039747,2]
[404756291,1770511845482,-303.0,0.00039747,2]
[404756292,1770511845491,-300.0,0.00039747,2]
[404756295,1770511845501,-852.68208559,0.00039747,2]
[404756297,1770511845510,-305.02115314,0.00039747,2]
[404756299,1770511845519,-300.0,0.00039747,2]
[404756301,1770511845530,-881.38175827,0.00039747,2]
[404756302,1770511845540,-300.0,0.00039747,2]
[404756304,1770511845549,-300.0,0.00039747,2]
[404756307,1770511845559,-300.0,0.00039747,2]
[404756308,1770511845568,-300.0,0.00039747,2]
[404756310,1770511845578,-306.19819169,0.00039747,2]
[404756313,1770511845588,-300.0,0.00039747,2]
[404756315,1770511845598,-300.0,0.00039747,2]
[404756317,1770511845607,-457.17696299,0.00039747,2]
[404756319,1770511845617,-300.0,0.00039747,2]
[404756321,1770511845629,-300.0,0.00039747,2]
[404756323,1770511845639,-300.0,0.00039747,2]
[404756325,1770511845648,-370.09797997,0.00039747,2]
[404756327,1770511845657,-300.0,0.00039747,2]
[404756328,1770511845666,-300.0,0.00039747,2]
[404756331,1770511845676,-300.0,0.00039747,2]
[404756333,1770511845686,-300.0,0.00039747,2]
[404756334,1770511845696,-300.0,0.00039747,2]
[404756336,1770511845706,-300.0,0.00039747,2]
[404756338,1770511845716,-516.79047855,0.00039747,2]
[404756340,1770511845725,-305.17533586,0.00039747,2]
[404756342,1770511845735,-300.0,0.00039747,2]
[404756344,1770511845744,-300.0,0.00039747,2]
[404756346,1770511845753,-300.0,0.00039747,2]
[404756348,1770511845763,-300.0,0.00039747,2]
[404756350,1770511845773,-300.0,0.00039747,2]
[404756352,1770511845782,-300.0,0.00039747,2]
[404756354,1770511845791,-571.85515654,0.00039747,2]
[404756356,1770511845801,-300.0,0.00039747,2]
[404756358,1770511845810,-300.0,0.00039747,2]
[404756360,1770511845819,-300.0,0.00039747,2]
[404756362,1770511845829,-1078.26092173,0.00039747,2]
[404756364,1770511845839,-300.0,0.00039747,2]
[404756367,1770511845848,-852.68208559,0.00039747,2]
[404756368,1770511845858,-305.02115314,0.00039747,2]
[404756370,1770511845867,-300.0,0.00039747,2]
[404756372,1770511845880,-881.38175827,0.00039747,2]
[404756374,1770511845890,-300.0,0.00039747,2]
[404756376,1770511845899,-300.0,0.00039747,2]
[404756378,1770511845908,-300.0,0.00039747,2]
[404756380,1770511845918,-300.0,0.00039747,2]
[404756382,1770511845927,-306.19819169,0.00039747,2]
[404756384,1770511845937,-300.0,0.00039747,2]
[404756386,1770511845947,-300.0,0.00039747,2]
[404756388,1770511845958,-457.17696299,0.00039747,2]
[404756390,1770511845968,-300.0,0.00039747,2]
[404756392,1770511845977,-300.0,0.00039747,2]
[404756395,1770511845987,-300.0,0.00039747,2]
[404756396,1770511845996,-370.09797997,0.00039747,2]
[404756402,1770511846043,-300.0,0.00039747,2]
[404756404,1770511846052,-300.0,0.00039747,2]
[404756406,1770511846061,-300.0,0.00039747,2]
[404756408,1770511846070,-300.0,0.00039747,2]
[404756410,1770511846079,-300.0,0.00039747,2]
[404756413,1770511846088,-300.0,0.00039747,2]
[404756415,1770511846097,-516.79047855,0.00039747,2]
[404756417,1770511846106,-305.17533586,0.00039747,2]
[404756419,1770511846115,-300.0,0.00039747,2]
[404756421,1770511846124,-300.0,0.00039747,2]
[404756423,1770511846134,-300.0,0.00039747,2]
[404756425,1770511846143,-300.0,0.00039747,2]
[404756427,1770511846152,-300.0,0.00039747,2]
[404756429,1770511846161,-300.0,0.00039747,2]
[404756431,1770511846170,-571.85515654,0.00039747,2]
[404756433,1770511846179,-300.0,0.00039747,2]
[404756434,1770511846189,-575.82164268,0.00039747,2]
[404756435,1770511846208,-300.0,0.00039747,2]
[404756436,1770511846218,-1078.26092173,0.00039747,2]
[404756437,1770511846227,-852.68208559,0.00039747,2]
[404756438,1770511846237,-300.0,0.00039747,2]
[404756439,1770511846246,-305.02115314,0.00039747,2]
[404756440,1770511846255,-300.0,0.00039747,2]
[404756441,1770511846264,-881.38175827,0.00039747,2]
[404756442,1770511846273,-300.0,0.00039747,2]
[404756443,1770511846282,-300.0,0.00039747,2]
[404756444,1770511846291,-300.0,0.00039747,2]
[404756445,1770511846300,-300.0,0.00039747,2]
[404756446,1770511846310,-306.19819169,0.00039747,2]
[404756447,1770511846319,-300.0,0.00039747,2]
[404756448,1770511846328,-300.0,0.00039747,2]
[404756449,1770511846337,-457.17696299,0.00039747,2]
[404756450,1770511846346,-300.0,0.00039747,2]
[404756451,1770511846355,-300.0,0.00039747,2]
[404756452,1770511846365,-300.0,0.00039747,2]
[404756453,1770511846376,-370.09797997,0.00039747,2]
[404756454,1770511846385,-300.0,0.00039747,2]
[404756455,1770511846394,-300.0,0.00039747,2]
[404756456,1770511846404,-300.0,0.00039747,2]
[404756457,1770511846414,-300.0,0.00039747,2]
[404756458,1770511846423,-300.0,0.00039747,2]
[404756459,1770511846432,-300.0,0.00039747,2]
[404756460,1770511846442,-516.79047855,0.00039747,2]
[404756461,1770511846451,-305.17533586,0.00039747,2]
[404756462,1770511846460,-300.0,0.00039747,2]
[404756463,1770511846469,-300.0,0.00039747,2]
[404756464,1770511846478,-300.0,0.00039747,2]
[404756465,1770511846489,-300.0,0.00039747,2]
[404756466,1770511846498,-300.0,0.00039747,2]
[404756467,1770511846507,-300.0,0.00039747,2]
[404756468,1770511846516,-571.85515654,0.00039747,2]
[404756469,1770511846526,-300.0,0.00039747,2]
[404756470,1770511846535,-300.0,0.00039747,2]
[404756471,1770511846544,-300.0,0.00039747,2]
[404756472,1770511846553,-1078.26092173,0.00039747,2]
[404756473,1770511846566,-300.0,0.00039747,2]
[404756474,1770511846576,-300.0,0.00039747,30]
[404756475,1770511846585,-300.0,0.00039747,2]
[404756476,1770511846595,-852.68208559,0.00039747,2]
[404756477,1770511846604,-305.02115314,0.00039747,2]
[404756478,1770511846613,-300.0,0.00039747,2]
[404756479,1770511846624,-881.38175827,0.00039747,2]
[404756481,1770511846633,-300.0,0.00039747,2]
[404756483,1770511846642,-300.0,0.00039747,2]
[404756485,1770511846651,-300.0,0.00039747,2]
[404756487,1770511846660,-300.0,0.00039747,2]
[404756489,1770511846669,-306.19819169,0.00039747,2]
[404756491,1770511846679,-300.0,0.00039747,2]
[404756493,1770511846690,-457.17696299,0.00039747,2]
[404756495,1770511846699,-300.0,0.00039747,2]
[404756497,1770511846709,-300.0,0.00039747,2]
[404756499,1770511846718,-300.0,0.00039747,2]
[404756501,1770511846728,-300.0,0.00039747,2]
[404756503,1770511846737,-370.09797997,0.00039747,2]
[404756505,1770511846746,-300.0,0.00039747,2]
[404756508,1770511846759,-300.0,0.00039747,2]
[404756510,1770511846769,-300.0,0.00039747,2]
[404756512,1770511846778,-300.0,0.00039747,2]
[404756514,1770511846787,-300.0,0.00039747,2]
[404756516,1770511846797,-300.0,0.00039747,2]
[404756518,1770511846806,-516.79047855,0.00039747,2]
[404756520,1770511846816,-153.94240824,0.00039886,2]
[404756522,1770511846825,-250.0,0.0004,45]
[404756524,1770511846834,-11094.83346088,0.0004,120]
[404756526,1770511846843,-153.0,0.0004,120]
[404756528,1770511846852,-2764.0,0.0004,120]
[404756530,1770511846862,-150.0,0.00040406,2]
[404756532,1770511846872,-3135.85604413,0.0004041,15]
[404756534,1770511846881,-1476.90100505,0.00040416,15]
[404756536,1770511846891,-181.0,0.00040559,120]
[404756538,1770511846900,-300.080833,0.00040661,102]
[404756540,1770511846911,-998.0,0.000407,30]
[404756542,1770511846921,-153.0,0.000408,120]
[404756544,1770511846930,-785.0,0.000409,30]
[404756546,1770511846939,-300.0,0.00041068,22]
[404756548,1770511846949,-507.0,0.00041078,12]
[404756550,1770511846964,-13082.53,0.000411,2]
[404756553,1770511846974,-1411.0,0.00041211,2]
[404756555,1770511846983,-3483.0,0.00041211,2]
[404756556,1770511846994,-616.0,0.00041211,2]
[404756557,1770511847003,-1335.0,0.00041211,2]
[404756558,1770511847013,-1206.0,0.00041211,2]
[404756559,1770511847024,-1272.0,0.00041211,2]
[404756561,1770511847034,-917.0,0.00041211,2]
[404756562,1770511847043,-3255.0,0.00041211,2]
[404756564,1770511847053,-412.0,0.00041211,2]
[404756565,1770511847062,-200.0,0.00041241,2]
[404756566,1770511847072,-200.0,0.00041241,2]
[404756567,1770511847082,-200.0,0.00041241,2]